fUST/lending_fUST_20260107
["ID","MTS","AMOUNT","RATE_DAILY","PERIOD"]
[400583509,1767732651141,-171.97363199,0.00034215,2]
[400583510,1767732651150,-800.0,0.00034228,2]
[400583511,1767732651159,-1564.1243201,0.00034244,2]
[400583512,1767732651167,-2364.80479141,0.00034245,30]
[400583513,1767732651178,-2226.19539903,0.00034245,30]
[400583514,1767732651189,-377.95093046,0.00034245,30]
[400584646,1767733181738,-423.0,0.00013699,2]
[400584647,1767733210463,-300.0,0.00013673,2]
[400584648,1767733210485,-77.0,0.00013699,2]
[400584649,1767733210507,-615.0,0.00013699,2]
[400584650,1767733210528,-166.66666668,0.00014121,2]
[400584651,1767733210551,-181.54409783,0.00014175,2]
[400584652,1767733210570,-600.0,0.00014221,2]
[400584653,1767733210593,-414.78923549,0.00014247,2]
[400584704,1767733697657,155.0,6e-05,2]
[400584739,1767733832474,-294.06255518,0.00013273,2]
[400584741,1767733832485,-205.93744482,0.00013273,2]
[400584743,1767733832495,-608.0,0.00013273,2]
[400584745,1767733832505,-264.1517166,0.00013673,2]
[400584747,1767733832516,-35.8482834,0.00013673,2]
[400584749,1767733832526,-300.0,0.00013784,2]
[400584751,1767733832536,-81.31675078,0.00013821,2]
[400585310,1767733840654,-315.00654125,0.00013821,2]
[400585311,1767733840665,-167.82524283,0.00013821,2]
[400585312,1767733840674,-183.06658991,0.00014175,2]
[400585313,1767733840683,-600.0,0.00014221,2]
[400585314,1767733840693,-585.21076451,0.00014247,2]
[400585315,1767733840702,-243.52643983,0.00014693,2]
[400585316,1767733840712,-448.54946645,0.00014764,2]
[400585317,1767733840722,-1293.12747607,0.00014764,2]
[400585318,1767733840733,-263.98648147,0.00014764,2]
[400585319,1767733840747,-359.99275684,0.00014764,2]
[400585851,1767733846588,-7218.29849557,0.00014764,2]
[400585853,1767733846597,-900.0,0.00014768,2]
[400585855,1767733846607,-1171.78607556,0.00014795,2]
[400585857,1767733846616,-1000.0,0.00015,2]
[400585859,1767733846625,-15283.39668471,0.00015,2]
[400585877,1767733846646,-3385.90232625,0.00015,2]
[400585879,1767733846792,-177.0,0.00015273,2]
[400585881,1767733846801,-262.82170704,0.00015316,2]
[400585890,1767733846880,-937.17829296,0.00015316,2]
[400585892,1767733846889,-2327.55645232,0.00015764,2]
[400585894,1767733846898,-1359.56525472,0.00015864,2]
[400585895,1767733847028,-140.43474528,0.00015864,2]
[400585896,1767733847037,-159.87697992,0.00016112,4]
[400585898,1767733847048,-161.94206136,0.00016112,4]
[400585900,1767733847058,-255.4623722,0.00016393,2]
[400585902,1767733847067,-61.54917119,0.00016412,2]
[400586861,1767733857356,476.1,0.00030137,120]
[400586895,1767733897976,200.0,0.0003013,120]
[400586901,1767734092090,195.96205507,0.00025525,120]
[400586902,1767734140865,-272.61,9.611e-05,2]
[400586903,1767734140899,-408.92,0.00010048,2]
[400586904,1767734140931,-545.22,0.00010485,2]
[400586905,1767734140964,-681.53,0.00010922,2]
[400586906,1767734140995,-817.83,0.00011359,2]
[400586907,1767734141025,-954.14,0.00011796,2]
[400586910,1767734218036,178.93,7.557e-05,2]
[400586911,1767734218477,268.4,7.901e-05,2]
[400586912,1767734219426,357.86,8.245e-05,2]
[400586913,1767734219854,447.33,8.588e-05,2]
[400586914,1767734221905,536.8,8.932e-05,2]
[400586915,1767734222392,626.26,9.275e-05,2]
[400586916,1767734222852,223.93,9.619e-05,2]
[400586917,1767734222877,491.8,9.619e-05,2]
[400586918,1767734223271,805.19,9.962e-05,2]
[400586919,1767734223875,894.66,0.00010306,2]
[400586920,1767734297008,167.87,9.076e-05,2]
[400586921,1767734297453,195.85,9.425e-05,2]
[400586922,1767734297892,223.83,9.774e-05,2]
[400586923,1767734298336,251.81,0.00010123,2]
[400586924,1767734299589,279.78,0.00010472,2]
[400586925,1767734429009,-5000.0,0.00012326,2]
[400586926,1767734430359,-594.0,0.00012326,2]
[400586927,1767734430387,-561.21626218,0.0001244,3]
[400586928,1767734430418,-269.03213719,0.00012451,2]
[400586929,1767734430453,-300.0,0.00012572,2]
[400586930,1767734430487,-300.0,0.00012572,2]
[400586931,1767734430519,-300.0,0.00012572,2]
[400586932,1767734430551,-300.0,0.00012572,2]
[400586933,1767734430584,-300.0,0.00012572,2]
[400586934,1767734430615,-300.0,0.00012572,2]
[400586935,1767734430646,-300.0,0.00012572,2]
[400586936,1767734430677,-300.0,0.00012572,2]
[400586937,1767734430706,-300.0,0.00012572,2]
[400586938,1767734430736,-300.0,0.00012572,2]
[400586939,1767734430766,-300.0,0.00012572,2]
[400586940,1767734430795,-251.51320126,0.00012572,2]
[400586941,1767734430888,-48.48679874,0.00012572,2]
[400586942,1767734430916,-500.0,0.00013273,2]
[400586943,1767734430945,-500.0,0.00013273,2]
[400586944,1767734430975,-300.0,0.00013598,2]
[400586945,1767734431004,-293.32613962,0.00013599,2]
[400586946,1767734431272,-300.0,0.00012572,2]
[400586947,1767734431303,-2683.62587672,0.00013599,2]
[400586948,1767734431543,-4032.75824656,0.00013599,2]
[400586949,1767734431572,-300.0,0.00013673,2]
[400586950,1767734431743,300.0,0.00012572,2]
[400586951,1767734431964,300.0,0.00012572,2]
[400586953,1767734469856,-500.0,0.00013273,2]
[400586954,1767734469885,-499.77739692,0.00013562,2]
[400586955,1767734469915,-300.0,0.00013698,2]
[400586956,1767734469946,-2400.45520616,0.00013699,2]
[400586957,1767734470013,-2599.54479384,0.00013699,2]
[400586958,1767734472755,5000.0,0.00013699,2]
[400586959,1767734500610,153.34,7.279e-05,2]
[400586960,1767734501475,306.67,7.625e-05,2]
[400586961,1767734501905,460.01,7.972e-05,2]
[400586962,1767734502854,613.34,8.318e-05,2]
[400586963,1767734503289,766.68,8.665e-05,2]
[400586964,1767734503402,-5000.0,0.00013562,2]
[400586965,1767734503740,0.01,9.012e-05,2]
[400586966,1767734503766,920.0,9.012e-05,2]
[400586967,1767734504169,1073.35,9.358e-05,2]
[400586968,1767734504627,1226.68,9.705e-05,2]
[400586969,1767734505053,1380.02,0.00010051,2]
[400586970,1767734505984,1533.36,0.00010398,2]
[400586971,1767734520064,4206.35174588,0.00013699,2]
[400586972,1767734542114,-500.0,0.00013273,2]
[400586973,1767734542142,-300.0,0.00013673,2]
[400586975,1767734579580,304.84,7.317e-05,2]
[400586976,1767734579990,609.68,7.666e-05,2]
[400586977,1767734580412,914.53,8.014e-05,2]
[400586978,1767734580843,1219.37,8.362e-05,2]
[400586979,1767734581365,1524.21,8.711e-05,2]
[400586980,1767734581672,1829.05,9.059e-05,2]
[400586981,1767734582113,1998.33,9.408e-05,2]
[400586982,1767734582137,135.56,9.408e-05,2]
[400586983,1767734582546,2438.73,9.756e-05,2]
[400586984,1767734582987,2743.58,0.00010105,2]
[400586985,1767734583448,3048.42,0.00010453,2]
[400586986,1767734590202,500.0,0.00013273,2]
[400586987,1767734610196,1133.72,0.00013699,2]
[400586988,1767734610219,3866.28,0.00013699,2]
[400586989,1767734632765,5000.0,0.00013699,2]
[400586990,1767734643759,500.0,0.00013273,2]
[400586991,1767734650170,300.0,0.00013673,2]
[400586992,1767734650696,333.73,0.00013273,2]
[400586993,1767734650722,166.27,0.00013273,2]
[400586994,1767734656908,4972.61262854,0.00013699,2]
[400586995,1767734658784,194.16,7.535e-05,2]
[400586996,1767734659204,388.33,7.893e-05,2]
[400586997,1767734659627,582.49,8.252e-05,2]
[400586998,1767734660029,776.66,8.611e-05,2]
[400586999,1767734660467,970.82,8.97e-05,2]
[400587000,1767734660909,1164.98,9.329e-05,2]
[400587001,1767734661390,783.68737146,9.687e-05,2]
[400587002,1767734661416,575.46262854,9.687e-05,2]
[400587003,1767734661836,1553.31,0.00010046,2]
[400587004,1767734662267,1747.48,0.00010405,2]
[400587005,1767734662820,1941.64,0.00010764,2]
[400587006,1767734680936,500.0,0.00013699,2]
[400587007,1767734700134,-896.06324393,0.00013562,2]
[400587008,1767734705157,5000.0,0.00013699,2]
[400587009,1767734713221,500.0,0.00013273,2]
[400587011,1767734728062,2707.88351214,0.00013699,2]
[400587012,1767734728088,2292.11648786,0.00013699,2]
[400587015,1767734737426,284.05,7.869e-05,2]
[400587016,1767734737853,426.08,8.227e-05,2]
[400587017,1767734738289,568.1,8.585e-05,2]
[400587018,1767734738714,710.13,8.942e-05,2]
[400587019,1767734739145,852.15,9.3e-05,2]
[400587020,1767734739571,994.18,9.658e-05,2]
[400587021,1767734739985,1136.21,0.00010015,2]
[400587022,1767734740409,1278.23,0.00010373,2]
[400587023,1767734740833,1420.26,0.00010731,2]
[400587028,1767734774134,-500.0,0.00013273,2]
[400587029,1767734774169,-500.0,0.00013273,2]
[400587030,1767734774205,-3500.01,0.00013562,2]
[400587031,1767734774488,-999.99,0.00013562,2]
[400587032,1767734774524,-300.0,0.00013673,2]
[400587033,1767734774563,-300.0,0.00013698,2]
[400587034,1767734774598,-500.0,0.00013699,2]
[400587035,1767734774636,-500.0,0.00013699,2]
[400587036,1767734774675,-500.0,0.00013699,2]
[400587037,1767734774709,-500.0,0.00013699,2]
[400587038,1767734774897,-277.19218292,0.0001376,2]
[400587039,1767734774937,-1098.44792801,0.00013821,2]
[400587040,1767734794084,-1000.0,0.00013821,2]
[400587041,1767734794113,-555.85922892,0.00013821,2]
[400587042,1767734794142,-1000.0,0.00013821,2]
[400587043,1767734794173,-600.0,0.0001387,2]
[400587044,1767734794203,-226.0,0.00014,2]
[400587045,1767734794234,-1000.0,0.00014086,2]
[400587046,1767734794267,-300.0,0.00014096,2]
[400587047,1767734794300,-300.0,0.00014096,2]
[400587049,1767734815726,-271.64833926,0.00013845,2]
[400587050,1767734815760,-300.0,0.00014096,2]
[400587051,1767734815792,-300.0,0.00014096,2]
[400587052,1767734815823,-300.0,0.00014096,2]
[400587053,1767734815856,-300.0,0.00014096,2]
[400587054,1767734815889,-300.0,0.00014096,2]
[400587055,1767734815921,-300.0,0.00014096,2]
[400587056,1767734815954,-300.0,0.00014096,2]
[400587057,1767734815987,-300.0,0.00014096,2]
[400587058,1767734816019,-300.0,0.00014096,2]
[400587059,1767734816051,-300.0,0.00014096,2]
[400587060,1767734816082,-300.0,0.00014096,2]
[400587061,1767734816115,-300.0,0.00014096,2]
[400587062,1767734816148,-300.0,0.00014096,2]
[400587063,1767734816178,-258.50030518,0.00014175,2]
[400587064,1767734816207,-539.71271112,0.00014221,2]
[400587065,1767734819537,181.1,7.929e-05,2]
[400587066,1767734819981,271.65,8.289e-05,2]
[400587067,1767734820445,362.19,8.649e-05,2]
[400587068,1767734821363,452.74,9.01e-05,2]
[400587070,1767734827423,-395.58904437,9.37e-05,2]
[400587071,1767734830615,-147.70095563,9.37e-05,2]
[400587072,1767734830641,-167.12803546,9.731e-05,2]
[400587073,1767734832754,-316.94152014,9.731e-05,2]
[400587074,1767734836684,-149.7704444,9.731e-05,2]
[400587075,1767734836712,-24.69595621,0.00010091,2]
[400587076,1767734838309,-224.38933574,0.00010091,2]
[400587077,1767734845600,-160.24657823,0.00010091,2]
[400587078,1767734847083,-263.17107362,0.00010091,2]
[400587079,1767734850960,-51.8870562,0.00010091,2]
[400587080,1767734850994,-814.94,0.00010451,2]
[400587081,1767734851031,-905.48,0.00010812,2]
[400587082,1767734851060,-500.0,0.00013273,2]
[400587083,1767734851096,-500.0,0.00013273,2]
[400587084,1767734851127,-500.0,0.00013699,2]
[400587085,1767734851159,-500.0,0.00013699,2]
[400587086,1767734851189,-500.0,0.00013699,2]
[400587087,1767734851218,-500.0,0.00013699,2]
[400587091,1767734887283,-500.0,0.00013273,2]
[400587092,1767734887315,-500.0,0.00013273,2]
[400587093,1767734887345,-500.0,0.00013273,2]
[400587094,1767734887376,-1000.0,0.00013821,2]
[400587095,1767734887408,-1000.0,0.00013821,2]
[400587096,1767734887438,-1000.0,0.00013821,2]
[400587097,1767734887468,-0.01,0.00013821,2]
[400587099,1767734898343,185.95,7.772e-05,2]
[400587100,1767734898787,247.93,8.11e-05,2]
[400587103,1767734899204,309.92,8.448e-05,2]
[400587104,1767734899615,371.9,8.786e-05,2]
[400587105,1767734900038,433.88,9.124e-05,2]
[400587106,1767734902878,-211.91943382,9.462e-05,2]
[400587107,1767734903390,-283.95056618,9.462e-05,2]
[400587108,1767734903424,-557.85,9.8e-05,2]
[400587109,1767734903456,-619.83,0.00010138,2]
[400587110,1767734903486,-427.40712175,0.00013673,2]
[400587111,1767734903516,-999.99,0.00013821,2]
[400587112,1767734903548,-300.0,0.00013971,2]
[400587113,1767734903583,-300.0,0.00013972,2]
[400587114,1767734903618,-300.0,0.00013972,2]
[400587115,1767734903653,-300.0,0.00013972,2]
[400587116,1767734903687,-300.0,0.00013972,2]
[400587117,1767734903720,-300.0,0.00013972,2]
[400587118,1767734903758,-300.0,0.00013972,2]
[400587120,1767734921574,-300.0,0.00013972,2]
[400587121,1767734921608,-300.0,0.00013972,2]
[400587122,1767734921648,-300.0,0.00013972,2]
[400587123,1767734921682,-300.0,0.00013972,2]
[400587124,1767734921716,-300.0,0.00013972,2]
[400587125,1767734921749,-300.0,0.00013972,2]
[400587126,1767734921782,-300.0,0.00013972,2]
[400587127,1767734921817,-300.0,0.00013972,2]
[400587128,1767734921851,-300.0,0.00013972,2]
[400587129,1767734921880,-257.86880212,0.00014175,2]
[400587130,1767734921910,-420.07651244,0.00014175,2]
[400587131,1767734921939,-612.00596424,0.00014175,2]
[400587132,1767734921968,-1000.0,0.00014247,2]
[400587133,1767734938123,-1000.0,0.00014247,2]
[400587134,1767734938159,-1000.0,0.00014247,2]
[400587135,1767734938195,-1000.0,0.00014247,2]
[400587136,1767734955106,-603.20077108,0.00013273,2]
[400587137,1767734955138,-3793.60845784,0.00014247,2]
[400587158,1767734971858,214.46,8.077e-05,2]
[400587159,1767734972296,321.69,8.445e-05,2]
[400587160,1767734972712,428.92,8.812e-05,2]
[400587161,1767734973101,536.15,9.179e-05,2]
[400587162,1767734977364,-169.3686996,9.546e-05,2]
[400587163,1767734980611,-188.32954994,9.546e-05,2]
[400587164,1767734982117,-283.91314046,9.546e-05,2]
[400587165,1767734985655,-1.76861,9.546e-05,2]
[400587166,1767734985681,-302.97291674,9.913e-05,2]
[400587167,1767734991642,-5000.0,9.451e-05,2]
[400587168,1767734992087,-447.64708326,9.913e-05,2]
[400587170,1767735028744,-5000.0,0.00010177,2]
[400587188,1767735031823,-563.0,0.00010177,2]
[400587190,1767735031832,-857.85,0.0001028,2]
[400587192,1767735031842,-965.08,0.00010647,2]
[400587194,1767735031850,-1072.31,0.00011015,2]
[400587196,1767735031859,-500.0,0.00013273,2]
[400587198,1767735031869,-500.0,0.00013273,2]
[400587200,1767735031878,-500.0,0.00013699,2]
[400587202,1767735031887,-500.0,0.00013699,2]
[400587204,1767735031896,-500.0,0.00013699,2]
[400587206,1767735031905,-500.0,0.00013699,2]
[400587208,1767735031915,-1000.0,0.00013821,2]
[400587210,1767735031924,-1000.0,0.00013821,2]
[400587212,1767735031933,-254.81930475,0.00014175,2]
[400587214,1767735031942,-413.59650413,0.00014175,2]
[400587216,1767735031951,-602.08091695,0.00014175,2]
[400587218,1767735031959,-1000.0,0.00014247,2]
[400587220,1767735031968,-1000.0,0.00014247,2]
[400587222,1767735031977,-1000.0,0.00014247,2]
[400587223,1767735031986,-1000.0,0.00014247,2]
[400587225,1767735031996,-500.0,0.00014368,2]
[400587227,1767735032005,-1500.0,0.00014368,2]
[400587229,1767735032015,-1500.0,0.00014368,2]
[400587231,1767735032024,-1500.0,0.00014368,2]
[400587233,1767735032033,-1500.0,0.00014795,2]
[400587235,1767735032042,-1500.0,0.00014795,2]
[400587237,1767735032052,-1500.0,0.00014795,2]
[400587239,1767735032061,-812.88473438,0.00014849,2]
[400587241,1767735032070,-541.38457236,0.00014916,2]
[400587243,1767735032079,-2000.0,0.00014916,2]
[400587245,1767735032088,-2000.0,0.00014916,2]
[400587247,1767735032098,-600.0,0.00014947,2]
[400587249,1767735032107,-1000.0,0.00015,2]
[400587251,1767735032116,-2412.43259168,0.00015,2]
[400587253,1767735032126,-4997.5,0.00015,2]
[400587255,1767735032135,-531.35451386,0.00015,3]
[400587257,1767735032146,-10987.96789992,0.0001501,2]
[400587259,1767735032155,-239.892767,0.00015068,2]
[400587261,1767735032163,-273.72368144,0.0001515,20]
[400587263,1767735032172,-500.0,0.0001524,2]
[400587265,1767735032182,-640.84858442,0.0001524,2]
[400587267,1767735032191,-500.0,0.0001524,2]
[400587269,1767735032199,-500.0,0.0001524,2]
[400587270,1767735032208,-500.0,0.0001524,2]
[400587272,1767735032218,-500.0,0.0001524,2]
[400587274,1767735032227,-189.74358165,0.0001524,2]
[400587276,1767735032238,-500.0,0.0001524,2]
[400587278,1767735032247,-500.0,0.0001524,2]
[400587280,1767735032256,-500.0,0.0001524,2]
[400587283,1767735032266,-500.0,0.0001524,2]
[400587285,1767735032275,-500.0,0.0001524,2]
[400587286,1767735032284,-500.0,0.0001524,2]
[400587289,1767735032293,-500.0,0.0001524,2]
[400587290,1767735032303,-500.0,0.0001524,2]
[400587293,1767735032312,-500.0,0.0001524,2]
[400587295,1767735032321,-500.0,0.0001524,2]
[400587296,1767735032330,-500.0,0.0001524,2]
[400587298,1767735032340,-500.0,0.0001524,2]
[400587300,1767735032349,-500.0,0.0001524,2]
[400587302,1767735032358,-500.0,0.0001524,2]
[400587304,1767735032367,-500.0,0.0001524,2]
[400587306,1767735032377,-500.0,0.0001524,2]
[400587308,1767735032386,-500.0,0.0001524,2]
[400587310,1767735032396,-500.0,0.0001524,2]
[400587312,1767735032406,-500.0,0.0001524,2]
[400587314,1767735032415,-295.22077984,0.0001524,2]
[400587316,1767735032424,-500.0,0.0001524,2]
[400587318,1767735032433,-335.12713683,0.0001524,2]
[400587320,1767735032443,-500.0,0.0001524,2]
[400587322,1767735032452,-455.50908263,0.0001524,2]
[400587324,1767735032462,-2000.0,0.00015342,2]
[400587326,1767735032471,-2000.0,0.00015342,2]
[400587328,1767735032480,-2000.0,0.00015342,2]
[400587330,1767735032489,-2500.0,0.00015464,2]
[400587332,1767735032498,-2500.0,0.00015464,2]
[400587334,1767735032507,-500.0,0.00015616,2]
[400587336,1767735032516,-11355.0,0.00015616,2]
[400587338,1767735032526,-569.00000001,0.00015753,2]
[400587340,1767735032534,-250.0,0.00015753,2]
[400587342,1767735032544,-11355.0,0.00015753,2]
[400587344,1767735032553,-320.54504033,0.00015845,2]
[400587346,1767735032562,-11355.0,0.0001589,2]
[400587348,1767735032572,-2506.10461326,0.0001589,2]
[400587350,1767735032582,-2500.0,0.0001589,2]
[400587352,1767735032591,-1338.08885357,0.0001589,2]
[400587354,1767735032601,-852.7144162,0.00015969,2]
[400587356,1767735032613,-2462.94558633,0.00015971,2]
[400587358,1767735032626,-3000.0,0.00016012,2]
[400587360,1767735032636,-3000.0,0.00016012,2]
[400587362,1767735032647,-11355.0,0.00016027,2]
[400587364,1767735032659,-11355.0,0.00016164,2]
[400587366,1767735032669,-6419.0,0.00016298,2]
[400587368,1767735032678,-5015.63317352,0.00016301,2]
[400587486,1767735037720,-2336.37,0.00016301,2]
[400587493,1767735037775,-4002.99682648,0.00016301,2]
[400587495,1767735037784,-500.0,0.00016326,2]
[400587497,1767735037793,-1042.00994321,0.00016372,5]
[400587499,1767735037802,-11355.0,0.00016438,2]
[400587502,1767735037811,-3000.0,0.00016438,2]
[400587505,1767735037820,-500.0,0.00016463,2]
[400587508,1767735037829,-200.0,0.00016473,2]
[400587510,1767735037839,-1041.66666667,0.00016486,2]
[400587512,1767735037849,-3500.0,0.0001656,2]
[400587514,1767735037859,-2007.63173447,0.0001656,2]
[400587516,1767735037868,-11355.0,0.00016575,2]
[400587518,1767735037878,-500.0,0.000166,2]
[400587520,1767735037887,-151.0,0.000166,2]
[400587522,1767735037896,-151.0,0.000166,2]
[400587524,1767735037905,-151.0,0.000167,2]
[400587526,1767735037914,-151.0,0.000167,2]
[400587528,1767735037923,-151.0,0.000167,2]
[400587530,1767735037932,-151.0,0.000167,2]
[400587532,1767735037942,-151.0,0.000167,2]
[400587534,1767735037951,-3414.41308788,0.000167,2]
[400587536,1767735037960,-11355.0,0.00016712,2]
[400587538,1767735037970,-500.0,0.00016737,2]
[400587540,1767735037980,-155.4754909,0.00016737,2]
[400587542,1767735037989,-1000000.0,0.0001676,2]
[400587544,1767735037998,-151.0,0.000168,2]
[400587546,1767735038008,-151.0,0.000168,2]
[400587549,1767735038018,-151.0,0.000168,2]
[400587551,1767735038028,-151.0,0.000168,2]
[400587553,1767735038037,-151.0,0.000168,2]
[400587555,1767735038048,-151.0,0.000168,2]
[400587557,1767735038057,-151.0,0.000168,2]
[400587559,1767735038066,-151.0,0.000168,2]
[400587561,1767735038076,-151.0,0.000168,2]
[400587563,1767735038084,-151.0,0.000168,2]
[400587564,1767735038094,-151.0,0.000168,2]
[400587565,1767735038104,-151.0,0.000168,2]
[400587566,1767735038113,-151.0,0.000168,2]
[400587567,1767735038123,-151.0,0.000168,2]
[400587568,1767735038132,-11355.0,0.00016849,2]
[400587569,1767735038141,-301.0,0.00016851,2]
[400587570,1767735038151,-200.0,0.00016874,2]
[400587571,1767735038160,-500.0,0.00016874,2]
[400587572,1767735038170,-500.0,0.00016984,2]
[400587573,1767735038179,-500.0,0.00016984,2]
[400587574,1767735038188,-500.0,0.00016984,2]
[400587575,1767735038197,-500.0,0.00016984,2]
[400587576,1767735038208,-500.0,0.00016984,2]
[400587577,1767735038218,-500.0,0.00016984,2]
[400587578,1767735038227,-500.0,0.00016984,2]
[400587579,1767735038237,-500.0,0.00016984,2]
[400587580,1767735038247,-500.0,0.00016984,2]
[400587581,1767735038256,-500.0,0.00016984,2]
[400587582,1767735038266,-500.0,0.00016984,2]
[400587583,1767735038276,-500.0,0.00016984,2]
[400587585,1767735038286,-500.0,0.00016984,2]
[400587586,1767735038296,-500.0,0.00016984,2]
[400587588,1767735038305,-500.0,0.00016984,2]
[400587590,1767735038315,-500.0,0.00016984,2]
[400587592,1767735038324,-511.14869574,0.00016984,2]
[400587594,1767735038334,-11355.0,0.00016986,2]
[400587596,1767735038344,-3500.0,0.00016986,2]
[400587598,1767735038354,-61162.51963186,0.00017,2]
[400587600,1767735038364,-163349.36340269,0.00017,7]
[400587602,1767735038373,-3414.41308786,0.00017,2]
[400587604,1767735038384,-500.0,0.00017011,2]
[400587606,1767735038394,-1887.16845353,0.00017108,2]
[400587608,1767735038405,-11355.0,0.00017123,2]
[400587610,1767735038415,-500.0,0.00017148,2]
[400587612,1767735038424,-11355.0,0.0001726,2]
[400587614,1767735038434,-500.0,0.00017285,2]
[400587616,1767735038443,-3414.41308786,0.000173,2]
[400587618,1767735038452,-11355.0,0.00017397,2]
[400587620,1767735038462,-500.0,0.00017422,2]
[400587622,1767735038471,-11355.0,0.00017534,2]
[400587625,1767735038482,-2418.71659724,0.00017534,2]
[400587627,1767735038492,-558.00072349,0.00017559,2]
[400587629,1767735038501,-2134.99566074,0.000176,2]
[400587630,1767735038511,-3414.41308786,0.000176,2]
[400587633,1767735038522,-11355.0,0.00017671,2]
[400587634,1767735038531,-11355.0,0.00017808,2]
[400587637,1767735038541,-369.4417414,0.00017845,2]
[400587639,1767735038550,-1286.87979113,0.00017894,7]
[400587641,1767735038561,-1000.0,0.000179,2]
[400587643,1767735038570,-1000.0,0.000179,2]
[400587645,1767735038580,-1000.0,0.000179,2]
[400587647,1767735038590,-1000.0,0.000179,2]
[400587649,1767735038600,-3414.41308786,0.000179,2]
[400587651,1767735038609,-11355.0,0.00017945,2]
[400587653,1767735038619,-1000.0,0.00018,2]
[400587655,1767735038629,-1000.0,0.00018,2]
[400587657,1767735038638,-1000.0,0.00018,2]
[400587673,1767735038781,-1000.0,0.00018,2]
[400587675,1767735038791,-1000.0,0.00018,2]
[400587677,1767735038801,-1000.0,0.00018,2]
[400587679,1767735038811,-530.254158,0.00018,2]
[400587681,1767735038820,-69746.40730063,0.00018,5]
[400587683,1767735038830,-3499.999999,0.00018,2]
[400587685,1767735038840,-11355.0,0.00018082,2]
[400587687,1767735038849,-254.5,0.00018157,2]
[400587689,1767735038859,-11355.0,0.00018219,2]
[400587691,1767735038868,-11355.0,0.00018356,2]
[400587693,1767735038877,-11355.0,0.00018493,2]
[400587695,1767735038887,-239.892767,0.00018493,2]
[400587697,1767735038897,-11355.0,0.0001863,2]
[400587699,1767735038906,-6419.0,0.00018742,2]
[400587701,1767735038917,-11358.88200947,0.00018767,2]
[400587703,1767735038927,-42279.56725066,0.000189,2]
[400587705,1767735038936,-10000.04923816,0.00019,2]
[400587707,1767735038945,-250.0,0.00019126,2]
[400587709,1767735038955,-900.0,0.00019178,2]
[400587711,1767735038965,-497.28977626,0.00019205,5]
[400587713,1767735038974,-240.04,0.000193,2]
[400587715,1767735038984,-284.75,0.000193,2]
[400587717,1767735038994,-2612.25,0.000193,2]
[400587719,1767735039003,-24961.46,0.000193,2]
[400587721,1767735039012,-167.75,0.000193,2]
[400587723,1767735039021,-1545.66873321,0.00019417,10]
[400587725,1767735039030,-648.93473211,0.00019726,2]
[400587727,1767735039040,-254.5,0.00019779,2]
[400587729,1767735039049,-418.33844246,0.00019845,2]
[400587731,1767735039058,-338.0,0.0001989,3]
[400587733,1767735039067,-181.04000005,0.0002,2]
[400587735,1767735039077,-210.16908342,0.0002,2]
[400587737,1767735039086,-1815.44742593,0.0002,2]
[400587739,1767735039096,-300.00038009,0.0002,7]
[400587741,1767735039105,-500.0,0.000201,7]
[400587743,1767735039115,-1817.00302999,0.0002094,13]
[400587745,1767735039124,-753.393773,0.00021,2]